{"text_format":"3","workbook":"xlsx","n_sheets":4,"sheets":["Anfang","PROJEKTPARAMETER","PROJEKTDETAILS","PROJEKTSUMMEN"],"not_rendered":{"charts":2,"defined_names":3,"pivot_tables":1},"read":"whole","date_system":"1900"}

{"sheet":"Anfang","index":0,"n_rows":8,"n_cols":2,"rows_kept":8}
[null,"ÜBER DIESE VORLAGE"]
[]
[null,"Verwenden Sie diese Arbeitsmappe, um Projektparameter, Projektdetails und Projektsummen während der Projektplanung für Anwaltskanzleien nachzuverfolgen."]
[null,"Geben Sie im Arbeitsblatt \"Projektparameter\" den Firmennamen ein, damit er in anderen Arbeitsblättern automatisch aktualisiert wird."]
[null,"Geben Sie Informationen in das Arbeitsblatt \"Projektparameter\" ein, um Säulendiagramme zu aktualisieren, und füllen Sie das Arbeitsblatt \"Projektdetails\" mit Informationen. Die PivotTable im Arbeitsblatt \"Projektsummen\" wird automatisch aktualisiert."]
[null,"Anmerkung:  "]
[null,"Weitere Anweisungen wurden in Spalte A auf jedem Arbeitsblatt bereitgestellt. Diese Texte wurden absichtlich ausgeblendet. Um die Texte zu entfernen, wählen Sie Spalte A und dann ENTF aus. Um die Texte einzublenden, wählen Sie Spalte A aus, und ändern Sie die Schriftfarbe."]
[null,"Um mehr über Tabellen in Arbeitsblättern zu erfahren, drücken Sie die UMSCHALTTASTE und dann F10 innerhalb einer Tabelle, wählen Sie die Option TABELLE und dann ALTERNATIVTEXT aus. Für die PivotTable im Arbeitsblatt \"Projektsummen\" drücken Sie die UMSCHALTTASTE und dann F10 innerhalb der Tabelle, wählen Sie PIVOTTABLE-OPTIONEN und dann die Registerkarte \"ALTERNATIVTEXT\" aus."]

{"sheet":"PROJEKTPARAMETER","index":1,"n_rows":19,"n_cols":9,"rows_kept":19}
["Erstellen Sie Projektparameter in diesem Arbeitsblatt. Geben Sie den Firmenname in der Zelle rechts ein. Nützliche Anweisungen befinden sich in Zellen in dieser Spalte.","Firmenname"]
["Der Titel dieses Arbeitsblatts befindet sich in der Zelle rechts.","Projektplanung für Anwaltskanzleien"]
["Die Vertraulichkeitsnachricht befindet sich in der Zelle auf der rechten Seite.",{"$f":"\"Vertraulicher \"&B1","v":"Vertraulicher Firmenname"}]
["Der Tipp steht in der Zelle rechts.","Schattierte Zellen werden für Sie berechnet. Sie brauchen nichts in ihnen einzugeben."]
["Geben Sie Details in die Tabelle \"Parameter\" ein, die in der Zelle rechts beginnt. Die nächste Anweisung finden Sie in Zelle A12.","PROJEKTTYP","ALLGEMEINER PARTNER","WIRTSCHAFTSANWALT","VERTEIDIGER","ANWALT FÜR GEISTIGES EIGENTUM","INSOLVENZANWALT","VERWALTUNGSPERSONAL","ERGEBNIS"]
[null,"Unternehmensgründung",{"v":0.1,"d":"10%"},{"v":0.4,"d":"40%"},{"v":0,"d":"0%"},{"v":0,"d":"0%"},{"v":0,"d":"0%"},{"v":0.5,"d":"50%"},{"$f":"SUM(Parameter[[#This Row],[ALLGEMEINER PARTNER]:[VERWALTUNGSPERSONAL]])","v":{"v":1,"d":"100%"}}]
[null,"Unternehmenserwerb",{"v":0.1,"d":"10%"},{"v":0.4,"d":"40%"},{"v":0,"d":"0%"},{"v":0.1,"d":"10%"},{"v":0,"d":"0%"},{"v":0.4,"d":"40%"},{"$f":"SUM(Parameter[[#This Row],[ALLGEMEINER PARTNER]:[VERWALTUNGSPERSONAL]])","v":{"v":1,"d":"100%"}}]
[null,"Produkthaftung und Abwehr von Ansprüchen",{"v":0.2,"d":"20%"},{"v":0,"d":"0%"},{"v":0.5,"d":"50%"},{"v":0,"d":"0%"},{"v":0,"d":"0%"},{"v":0.3,"d":"30%"},{"$f":"SUM(Parameter[[#This Row],[ALLGEMEINER PARTNER]:[VERWALTUNGSPERSONAL]])","v":{"v":1,"d":"100%"}}]
[null,"Patentanmeldung",{"v":0.1,"d":"10%"},{"v":0,"d":"0%"},{"v":0,"d":"0%"},{"v":0.6,"d":"60%"},{"v":0,"d":"0%"},{"v":0.3,"d":"30%"},{"$f":"SUM(Parameter[[#This Row],[ALLGEMEINER PARTNER]:[VERWALTUNGSPERSONAL]])","v":{"v":1,"d":"100%"}}]
[null,"Mitarbeiterklage",{"v":0.2,"d":"20%"},{"v":0.1,"d":"10%"},{"v":0.4,"d":"40%"},{"v":0,"d":"0%"},{"v":0,"d":"0%"},{"v":0.3,"d":"30%"},{"$f":"SUM(Parameter[[#This Row],[ALLGEMEINER PARTNER]:[VERWALTUNGSPERSONAL]])","v":{"v":1,"d":"100%"}}]
[null,"Insolvenz",{"v":0.1,"d":"10%"},{"v":0.2,"d":"20%"},{"v":0,"d":"0%"},{"v":0,"d":"0%"},{"v":0.4,"d":"40%"},{"v":0.3,"d":"30%"},{"$f":"SUM(Parameter[[#This Row],[ALLGEMEINER PARTNER]:[VERWALTUNGSPERSONAL]])","v":{"v":1,"d":"100%"}}]
["Geben Sie kombinierte Tarife in die Zellen C12 bis H12 auf der rechten Seite ein. Die nächste Anweisung finden Sie in Zelle A14.","Kombinierte Tarife",{"v":350,"d":"350 €"},{"v":250,"d":"250 €"},{"v":300,"d":"300 €"},{"v":275,"d":"275 €"},{"v":225,"d":"225 €"},{"v":125,"d":"125 €"}]
[]
["Das Säulendiagramm mit dem Vergleich zwischen geplant und Ist-Kosten befindet sich in einer Zelle auf der rechten Seite, und das Säulendiagramm mit dem Vergleich zwischen geplant und Ist-Stunden befindet sich in Zelle F14."]
[null,null,"ALLGEMEINER PARTNER","WIRTSCHAFT","VERTEIDIGER","GEISTIGES EIGENTUM","INSOLVENZ","VERWALTUNGSPERSONAL"]
[null,"GEPLANTE KOSTEN",{"$f":"SUBTOTAL(109,Details[ALLGEMEINER PARTNER])","v":{"v":78750,"d":"78,750.00 €"}},{"$f":"SUBTOTAL(109,Details[WIRTSCHAFTSANWALT])","v":{"v":66250,"d":"66,250.00 €"}},{"$f":"SUBTOTAL(109,Details[VERTEIDIGER])","v":{"v":105000,"d":"105,000.00 €"}},{"$f":"SUBTOTAL(109,Details[ANWALT FÜR GEISTIGES EIGENTUM])","v":{"v":35750,"d":"35,750.00 €"}},{"$f":"SUBTOTAL(109,Details[INSOLVENZANWALT])","v":{"v":0,"d":"0.00 €"}},{"$f":"SUBTOTAL(109,Details[VERWALTUNGSPERSONAL])","v":{"v":66250,"d":"66,250.00 €"}}]
[null,"TATSÄCHLICHE KOSTEN",{"$f":"SUBTOTAL(109,Details[ALLGEMEINER PARTNER 2])","v":{"v":79275,"d":"79,275.00 €"}},{"$f":"SUBTOTAL(109,Details[WIRTSCHAFTSANWALT 2])","v":{"v":67375,"d":"67,375.00 €"}},{"$f":"SUBTOTAL(109,Details[VERTEIDIGER 2])","v":{"v":105600,"d":"105,600.00 €"}},{"$f":"SUBTOTAL(109,Details[ANWALT FÜR GEISTIGES EIGENTUM 2])","v":{"v":34650,"d":"34,650.00 €"}},{"$f":"SUBTOTAL(109,Details[INSOLVENZANWALT 2])","v":{"v":0,"d":"0.00 €"}},{"$f":"SUBTOTAL(109,Details[VERWALTUNGSPERSONAL 2])","v":{"v":67000,"d":"67,000.00 €"}}]
[null,"GEPLANTE STUNDEN",{"$f":"C16/$C$12","v":{"v":225,"d":"225.00"}},{"$f":"D16/$C$12","v":{"v":189.28571428571428,"d":"189.29"}},{"v":300,"d":"300.00"},{"v":102.14285714285714,"d":"102.14"},{"v":0,"d":"0.00"},{"v":189.28571428571428,"d":"189.29"}]
[null,"TATSÄCHLICHE STUNDEN",{"$f":"C17/$C$12","v":{"v":226.5,"d":"226.50"}},{"$f":"D17/$C$12","v":{"v":192.5,"d":"192.50"}},{"$f":"E17/$C$12","v":{"v":301.7142857142857,"d":"301.71"}},{"$f":"F17/$C$12","v":{"v":99,"d":"99.00"}},{"$f":"G17/$C$12","v":{"v":0,"d":"0.00"}},{"$f":"H17/$C$12","v":{"v":191.42857142857142,"d":"191.43"}}]

{"sheet":"PROJEKTDETAILS","index":2,"n_rows":10,"n_cols":25,"rows_kept":10,"merged":[[1,24,8,28]]}
["Erstellen Sie Projektdetails in diesem Arbeitsblatt. Der Firmenname in der Zelle rechts wird automatisch aktualisiert. Nützliche Anweisungen befinden sich in Zellen in dieser Spalte. Drücken Sie die NACH-UNTEN-TASTE, um anzufangen.",{"$f":"PROJEKTPARAMETER!B1","v":"Firmenname"}]
["Der Titel dieses Arbeitsblatts befindet sich in der Zelle rechts, und der Infotipp ist in Zelle Y2.",{"$f":"PROJEKTPARAMETER!B2","v":"Projektplanung für Anwaltskanzleien"},{"$nulls":22},"INFO:\nUm eine Zeile hinzuzufügen, wählen Sie die Zelle unten rechts im Textkörper der Tabelle (nicht die Ergebniszeile) und drücken Sie die TAB-Taste oder drücken Sie UMSCHALT und dann F10 in der Tabelle an der Stelle, an der die Zeile eingefügt werden soll, und wählen Sie Einfügen | Tabellenzeilen Oben/Unten.\nAchten Sie darauf, dass alle nicht genutzten Zeilen gelöscht werden, da die PivotTable PROJEKTSUMMEN alle Zellen der Tabelle verwendet und ansonsten fehlerhafte Ergebnisse ausgegeben würden."]
["Die Vertraulichkeitsnachricht befindet sich in der Zelle auf der rechten Seite.",{"$f":"PROJEKTPARAMETER!B3","v":"Vertraulicher Firmenname"}]
["Geben Sie Details in die Tabelle \"Details\" ein, die in der Zelle rechts beginnt. Die Projekttyp in der Tabelle \"Details\" auf der rechten Seite werden automatisch aus der Tabelle \"Parameter\" im Arbeitsblatt \"Projektparameter\" aktualisiert.","PROJEKTNAME","PROJEKTTYP","VORAUSSICHTLICHER START","VORAUSSICHTLICHES ENDE","TATSÄCHLICHER START","TATSÄCHLICHES ENDE","GESCHÄTZTE ARBEIT","IST-ARBEIT","GESCHÄTZTE DAUER","TATSÄCHLICHE DAUER","ALLGEMEINER PARTNER","WIRTSCHAFTSANWALT","VERTEIDIGER","ANWALT FÜR GEISTIGES EIGENTUM","INSOLVENZANWALT","VERWALTUNGSPERSONAL","ALLGEMEINER PARTNER 2","WIRTSCHAFTSANWALT 2","VERTEIDIGER 2","ANWALT FÜR GEISTIGES EIGENTUM 2","INSOLVENZANWALT 2","VERWALTUNGSPERSONAL 2"]
[null,"Projekt 1","Unternehmensgründung",{"$f":"TODAY()","v":"2019-02-20"},{"$f":"TODAY()+60","v":"2019-04-21"},{"$f":"TODAY()+10","v":"2019-03-02"},{"$f":"TODAY()+65","v":"2019-04-26"},200,220,{"$f":"DAYS360(Details[[#This Row],[VORAUSSICHTLICHER START]],Details[[#This Row],[VORAUSSICHTLICHES ENDE]],FALSE)","v":61},{"$f":"DAYS360(Details[[#This Row],[TATSÄCHLICHER START]],Details[[#This Row],[TATSÄCHLICHES ENDE]],FALSE)","v":54},{"$f":"INDEX(Parameter[],MATCH(Details[[#This Row],[PROJEKTTYP]],Parameter[PROJEKTTYP],0),MATCH(Details[[#Headers],[ALLGEMEINER PARTNER]],Parameter[#Headers],0))*INDEX(PROJEKTPARAMETER!$B$12:$H$12,1,MATCH(Details[[#Headers],[ALLGEMEINER PARTNER]],Parameter[#Headers],0))*Details[[#This Row],[GESCHÄTZTE ARBEIT]]","v":{"v":7000,"d":"7,000 €"}},{"$f":"INDEX(Parameter[],MATCH(Details[[#This Row],[PROJEKTTYP]],Parameter[PROJEKTTYP],0),MATCH(Details[[#Headers],[WIRTSCHAFTSANWALT]],Parameter[#Headers],0))*INDEX(PROJEKTPARAMETER!$B$12:$H$12,1,MATCH(Details[[#Headers],[WIRTSCHAFTSANWALT]],Parameter[#Headers],0))*Details[[#This Row],[GESCHÄTZTE ARBEIT]]","v":{"v":20000,"d":"20,000 €"}},{"$f":"INDEX(Parameter[],MATCH(Details[[#This Row],[PROJEKTTYP]],Parameter[PROJEKTTYP],0),MATCH(Details[[#Headers],[VERTEIDIGER]],Parameter[#Headers],0))*INDEX(PROJEKTPARAMETER!$B$12:$H$12,1,MATCH(Details[[#Headers],[VERTEIDIGER]],Parameter[#Headers],0))*Details[[#This Row],[GESCHÄTZTE ARBEIT]]","v":{"v":0,"d":"0 €"}},{"$f":"INDEX(Parameter[],MATCH(Details[[#This Row],[PROJEKTTYP]],Parameter[PROJEKTTYP],0),MATCH(Details[[#Headers],[ANWALT FÜR GEISTIGES EIGENTUM]],Parameter[#Headers],0))*INDEX(PROJEKTPARAMETER!$B$12:$H$12,1,MATCH(Details[[#Headers],[ANWALT FÜR GEISTIGES EIGENTUM]],Parameter[#Headers],0))*Details[[#This Row],[GESCHÄTZTE ARBEIT]]","v":{"v":0,"d":"0 €"}},{"$f":"INDEX(Parameter[],MATCH(Details[[#This Row],[PROJEKTTYP]],Parameter[PROJEKTTYP],0),MATCH(Details[[#Headers],[INSOLVENZANWALT]],Parameter[#Headers],0))*INDEX(PROJEKTPARAMETER!$B$12:$H$12,1,MATCH(Details[[#Headers],[INSOLVENZANWALT]],Parameter[#Headers],0))*Details[[#This Row],[GESCHÄTZTE ARBEIT]]","v":{"v":0,"d":"0 €"}},{"$f":"INDEX(Parameter[],MATCH(Details[[#This Row],[PROJEKTTYP]],Parameter[PROJEKTTYP],0),MATCH(Details[[#Headers],[VERWALTUNGSPERSONAL]],Parameter[#Headers],0))*INDEX(PROJEKTPARAMETER!$B$12:$H$12,1,MATCH(Details[[#Headers],[VERWALTUNGSPERSONAL]],Parameter[#Headers],0))*Details[[#This Row],[GESCHÄTZTE ARBEIT]]","v":{"v":12500,"d":"12,500 €"}},{"$f":"INDEX(Parameter[],MATCH(Details[[#This Row],[PROJEKTTYP]],Parameter[PROJEKTTYP],0),MATCH(Details[[#Headers],[ALLGEMEINER PARTNER]],Parameter[#Headers],0))*INDEX(PROJEKTPARAMETER!$B$12:$H$12,1,MATCH(Details[[#Headers],[ALLGEMEINER PARTNER]],Parameter[#Headers],0))*Details[[#This Row],[IST-ARBEIT]]","v":{"v":7700,"d":"7,700 €"}},{"$f":"INDEX(Parameter[],MATCH(Details[[#This Row],[PROJEKTTYP]],Parameter[PROJEKTTYP],0),MATCH(Details[[#Headers],[WIRTSCHAFTSANWALT]],Parameter[#Headers],0))*INDEX(PROJEKTPARAMETER!$B$12:$H$12,1,MATCH(Details[[#Headers],[WIRTSCHAFTSANWALT]],Parameter[#Headers],0))*Details[[#This Row],[IST-ARBEIT]]","v":{"v":22000,"d":"22,000 €"}},{"$f":"INDEX(Parameter[],MATCH(Details[[#This Row],[PROJEKTTYP]],Parameter[PROJEKTTYP],0),MATCH(Details[[#Headers],[VERTEIDIGER]],Parameter[#Headers],0))*INDEX(PROJEKTPARAMETER!$B$12:$H$12,1,MATCH(Details[[#Headers],[VERTEIDIGER]],Parameter[#Headers],0))*Details[[#This Row],[IST-ARBEIT]]","v":{"v":0,"d":"0 €"}},{"$f":"INDEX(Parameter[],MATCH(Details[[#This Row],[PROJEKTTYP]],Parameter[PROJEKTTYP],0),MATCH(Details[[#Headers],[ANWALT FÜR GEISTIGES EIGENTUM]],Parameter[#Headers],0))*INDEX(PROJEKTPARAMETER!$B$12:$H$12,1,MATCH(Details[[#Headers],[ANWALT FÜR GEISTIGES EIGENTUM]],Parameter[#Headers],0))*Details[[#This Row],[IST-ARBEIT]]","v":{"v":0,"d":"0 €"}},{"$f":"INDEX(Parameter[],MATCH(Details[[#This Row],[PROJEKTTYP]],Parameter[PROJEKTTYP],0),MATCH(Details[[#Headers],[INSOLVENZANWALT]],Parameter[#Headers],0))*INDEX(PROJEKTPARAMETER!$B$12:$H$12,1,MATCH(Details[[#Headers],[INSOLVENZANWALT]],Parameter[#Headers],0))*Details[[#This Row],[IST-ARBEIT]]","v":{"v":0,"d":"0 €"}},{"$f":"INDEX(Parameter[],MATCH(Details[[#This Row],[PROJEKTTYP]],Parameter[PROJEKTTYP],0),MATCH(Details[[#Headers],[VERWALTUNGSPERSONAL]],Parameter[#Headers],0))*INDEX(PROJEKTPARAMETER!$B$12:$H$12,1,MATCH(Details[[#Headers],[VERWALTUNGSPERSONAL]],Parameter[#Headers],0))*Details[[#This Row],[IST-ARBEIT]]","v":{"v":13750,"d":"13,750 €"}}]
[null,"Projekt 2","Unternehmenserwerb",{"$f":"TODAY()+30","v":"2019-03-22"},{"$f":"TODAY()+100","v":"2019-05-31"},{"$f":"TODAY()+40","v":"2019-04-01"},{"$f":"TODAY()+110","v":"2019-06-10"},400,390,{"$f":"DAYS360(Details[[#This Row],[VORAUSSICHTLICHER START]],Details[[#This Row],[VORAUSSICHTLICHES ENDE]],FALSE)","v":69},{"$f":"DAYS360(Details[[#This Row],[TATSÄCHLICHER START]],Details[[#This Row],[TATSÄCHLICHES ENDE]],FALSE)","v":69},{"$f":"INDEX(Parameter[],MATCH(Details[[#This Row],[PROJEKTTYP]],Parameter[PROJEKTTYP],0),MATCH(Details[[#Headers],[ALLGEMEINER PARTNER]],Parameter[#Headers],0))*INDEX(PROJEKTPARAMETER!$B$12:$H$12,1,MATCH(Details[[#Headers],[ALLGEMEINER PARTNER]],Parameter[#Headers],0))*Details[[#This Row],[GESCHÄTZTE ARBEIT]]","v":{"v":14000,"d":"14,000 €"}},{"$f":"INDEX(Parameter[],MATCH(Details[[#This Row],[PROJEKTTYP]],Parameter[PROJEKTTYP],0),MATCH(Details[[#Headers],[WIRTSCHAFTSANWALT]],Parameter[#Headers],0))*INDEX(PROJEKTPARAMETER!$B$12:$H$12,1,MATCH(Details[[#Headers],[WIRTSCHAFTSANWALT]],Parameter[#Headers],0))*Details[[#This Row],[GESCHÄTZTE ARBEIT]]","v":{"v":40000,"d":"40,000 €"}},{"$f":"INDEX(Parameter[],MATCH(Details[[#This Row],[PROJEKTTYP]],Parameter[PROJEKTTYP],0),MATCH(Details[[#Headers],[VERTEIDIGER]],Parameter[#Headers],0))*INDEX(PROJEKTPARAMETER!$B$12:$H$12,1,MATCH(Details[[#Headers],[VERTEIDIGER]],Parameter[#Headers],0))*Details[[#This Row],[GESCHÄTZTE ARBEIT]]","v":{"v":0,"d":"0 €"}},{"$f":"INDEX(Parameter[],MATCH(Details[[#This Row],[PROJEKTTYP]],Parameter[PROJEKTTYP],0),MATCH(Details[[#Headers],[ANWALT FÜR GEISTIGES EIGENTUM]],Parameter[#Headers],0))*INDEX(PROJEKTPARAMETER!$B$12:$H$12,1,MATCH(Details[[#Headers],[ANWALT FÜR GEISTIGES EIGENTUM]],Parameter[#Headers],0))*Details[[#This Row],[GESCHÄTZTE ARBEIT]]","v":{"v":11000,"d":"11,000 €"}},{"$f":"INDEX(Parameter[],MATCH(Details[[#This Row],[PROJEKTTYP]],Parameter[PROJEKTTYP],0),MATCH(Details[[#Headers],[INSOLVENZANWALT]],Parameter[#Headers],0))*INDEX(PROJEKTPARAMETER!$B$12:$H$12,1,MATCH(Details[[#Headers],[INSOLVENZANWALT]],Parameter[#Headers],0))*Details[[#This Row],[GESCHÄTZTE ARBEIT]]","v":{"v":0,"d":"0 €"}},{"$f":"INDEX(Parameter[],MATCH(Details[[#This Row],[PROJEKTTYP]],Parameter[PROJEKTTYP],0),MATCH(Details[[#Headers],[VERWALTUNGSPERSONAL]],Parameter[#Headers],0))*INDEX(PROJEKTPARAMETER!$B$12:$H$12,1,MATCH(Details[[#Headers],[VERWALTUNGSPERSONAL]],Parameter[#Headers],0))*Details[[#This Row],[GESCHÄTZTE ARBEIT]]","v":{"v":20000,"d":"20,000 €"}},{"$f":"INDEX(Parameter[],MATCH(Details[[#This Row],[PROJEKTTYP]],Parameter[PROJEKTTYP],0),MATCH(Details[[#Headers],[ALLGEMEINER PARTNER]],Parameter[#Headers],0))*INDEX(PROJEKTPARAMETER!$B$12:$H$12,1,MATCH(Details[[#Headers],[ALLGEMEINER PARTNER]],Parameter[#Headers],0))*Details[[#This Row],[IST-ARBEIT]]","v":{"v":13650,"d":"13,650 €"}},{"$f":"INDEX(Parameter[],MATCH(Details[[#This Row],[PROJEKTTYP]],Parameter[PROJEKTTYP],0),MATCH(Details[[#Headers],[WIRTSCHAFTSANWALT]],Parameter[#Headers],0))*INDEX(PROJEKTPARAMETER!$B$12:$H$12,1,MATCH(Details[[#Headers],[WIRTSCHAFTSANWALT]],Parameter[#Headers],0))*Details[[#This Row],[IST-ARBEIT]]","v":{"v":39000,"d":"39,000 €"}},{"$f":"INDEX(Parameter[],MATCH(Details[[#This Row],[PROJEKTTYP]],Parameter[PROJEKTTYP],0),MATCH(Details[[#Headers],[VERTEIDIGER]],Parameter[#Headers],0))*INDEX(PROJEKTPARAMETER!$B$12:$H$12,1,MATCH(Details[[#Headers],[VERTEIDIGER]],Parameter[#Headers],0))*Details[[#This Row],[IST-ARBEIT]]","v":{"v":0,"d":"0 €"}},{"$f":"INDEX(Parameter[],MATCH(Details[[#This Row],[PROJEKTTYP]],Parameter[PROJEKTTYP],0),MATCH(Details[[#Headers],[ANWALT FÜR GEISTIGES EIGENTUM]],Parameter[#Headers],0))*INDEX(PROJEKTPARAMETER!$B$12:$H$12,1,MATCH(Details[[#Headers],[ANWALT FÜR GEISTIGES EIGENTUM]],Parameter[#Headers],0))*Details[[#This Row],[IST-ARBEIT]]","v":{"v":10725,"d":"10,725 €"}},{"$f":"INDEX(Parameter[],MATCH(Details[[#This Row],[PROJEKTTYP]],Parameter[PROJEKTTYP],0),MATCH(Details[[#Headers],[INSOLVENZANWALT]],Parameter[#Headers],0))*INDEX(PROJEKTPARAMETER!$B$12:$H$12,1,MATCH(Details[[#Headers],[INSOLVENZANWALT]],Parameter[#Headers],0))*Details[[#This Row],[IST-ARBEIT]]","v":{"v":0,"d":"0 €"}},{"$f":"INDEX(Parameter[],MATCH(Details[[#This Row],[PROJEKTTYP]],Parameter[PROJEKTTYP],0),MATCH(Details[[#Headers],[VERWALTUNGSPERSONAL]],Parameter[#Headers],0))*INDEX(PROJEKTPARAMETER!$B$12:$H$12,1,MATCH(Details[[#Headers],[VERWALTUNGSPERSONAL]],Parameter[#Headers],0))*Details[[#This Row],[IST-ARBEIT]]","v":{"v":19500,"d":"19,500 €"}}]
[null,"Projekt 3","Produkthaftung und Abwehr von Ansprüchen",{"$f":"TODAY()+150","v":"2019-07-20"},{"$f":"TODAY()+150","v":"2019-07-20"},{"$f":"TODAY()+150","v":"2019-07-20"},{"$f":"TODAY()+170","v":"2019-08-09"},500,500,{"$f":"DAYS360(Details[[#This Row],[VORAUSSICHTLICHER START]],Details[[#This Row],[VORAUSSICHTLICHES ENDE]],FALSE)","v":0},{"$f":"DAYS360(Details[[#This Row],[TATSÄCHLICHER START]],Details[[#This Row],[TATSÄCHLICHES ENDE]],FALSE)","v":19},{"$f":"INDEX(Parameter[],MATCH(Details[[#This Row],[PROJEKTTYP]],Parameter[PROJEKTTYP],0),MATCH(Details[[#Headers],[ALLGEMEINER PARTNER]],Parameter[#Headers],0))*INDEX(PROJEKTPARAMETER!$B$12:$H$12,1,MATCH(Details[[#Headers],[ALLGEMEINER PARTNER]],Parameter[#Headers],0))*Details[[#This Row],[GESCHÄTZTE ARBEIT]]","v":{"v":35000,"d":"35,000 €"}},{"$f":"INDEX(Parameter[],MATCH(Details[[#This Row],[PROJEKTTYP]],Parameter[PROJEKTTYP],0),MATCH(Details[[#Headers],[WIRTSCHAFTSANWALT]],Parameter[#Headers],0))*INDEX(PROJEKTPARAMETER!$B$12:$H$12,1,MATCH(Details[[#Headers],[WIRTSCHAFTSANWALT]],Parameter[#Headers],0))*Details[[#This Row],[GESCHÄTZTE ARBEIT]]","v":{"v":0,"d":"0 €"}},{"$f":"INDEX(Parameter[],MATCH(Details[[#This Row],[PROJEKTTYP]],Parameter[PROJEKTTYP],0),MATCH(Details[[#Headers],[VERTEIDIGER]],Parameter[#Headers],0))*INDEX(PROJEKTPARAMETER!$B$12:$H$12,1,MATCH(Details[[#Headers],[VERTEIDIGER]],Parameter[#Headers],0))*Details[[#This Row],[GESCHÄTZTE ARBEIT]]","v":{"v":75000,"d":"75,000 €"}},{"$f":"INDEX(Parameter[],MATCH(Details[[#This Row],[PROJEKTTYP]],Parameter[PROJEKTTYP],0),MATCH(Details[[#Headers],[ANWALT FÜR GEISTIGES EIGENTUM]],Parameter[#Headers],0))*INDEX(PROJEKTPARAMETER!$B$12:$H$12,1,MATCH(Details[[#Headers],[ANWALT FÜR GEISTIGES EIGENTUM]],Parameter[#Headers],0))*Details[[#This Row],[GESCHÄTZTE ARBEIT]]","v":{"v":0,"d":"0 €"}},{"$f":"INDEX(Parameter[],MATCH(Details[[#This Row],[PROJEKTTYP]],Parameter[PROJEKTTYP],0),MATCH(Details[[#Headers],[INSOLVENZANWALT]],Parameter[#Headers],0))*INDEX(PROJEKTPARAMETER!$B$12:$H$12,1,MATCH(Details[[#Headers],[INSOLVENZANWALT]],Parameter[#Headers],0))*Details[[#This Row],[GESCHÄTZTE ARBEIT]]","v":{"v":0,"d":"0 €"}},{"$f":"INDEX(Parameter[],MATCH(Details[[#This Row],[PROJEKTTYP]],Parameter[PROJEKTTYP],0),MATCH(Details[[#Headers],[VERWALTUNGSPERSONAL]],Parameter[#Headers],0))*INDEX(PROJEKTPARAMETER!$B$12:$H$12,1,MATCH(Details[[#Headers],[VERWALTUNGSPERSONAL]],Parameter[#Headers],0))*Details[[#This Row],[GESCHÄTZTE ARBEIT]]","v":{"v":18750,"d":"18,750 €"}},{"$f":"INDEX(Parameter[],MATCH(Details[[#This Row],[PROJEKTTYP]],Parameter[PROJEKTTYP],0),MATCH(Details[[#Headers],[ALLGEMEINER PARTNER]],Parameter[#Headers],0))*INDEX(PROJEKTPARAMETER!$B$12:$H$12,1,MATCH(Details[[#Headers],[ALLGEMEINER PARTNER]],Parameter[#Headers],0))*Details[[#This Row],[IST-ARBEIT]]","v":{"v":35000,"d":"35,000 €"}},{"$f":"INDEX(Parameter[],MATCH(Details[[#This Row],[PROJEKTTYP]],Parameter[PROJEKTTYP],0),MATCH(Details[[#Headers],[WIRTSCHAFTSANWALT]],Parameter[#Headers],0))*INDEX(PROJEKTPARAMETER!$B$12:$H$12,1,MATCH(Details[[#Headers],[WIRTSCHAFTSANWALT]],Parameter[#Headers],0))*Details[[#This Row],[IST-ARBEIT]]","v":{"v":0,"d":"0 €"}},{"$f":"INDEX(Parameter[],MATCH(Details[[#This Row],[PROJEKTTYP]],Parameter[PROJEKTTYP],0),MATCH(Details[[#Headers],[VERTEIDIGER]],Parameter[#Headers],0))*INDEX(PROJEKTPARAMETER!$B$12:$H$12,1,MATCH(Details[[#Headers],[VERTEIDIGER]],Parameter[#Headers],0))*Details[[#This Row],[IST-ARBEIT]]","v":{"v":75000,"d":"75,000 €"}},{"$f":"INDEX(Parameter[],MATCH(Details[[#This Row],[PROJEKTTYP]],Parameter[PROJEKTTYP],0),MATCH(Details[[#Headers],[ANWALT FÜR GEISTIGES EIGENTUM]],Parameter[#Headers],0))*INDEX(PROJEKTPARAMETER!$B$12:$H$12,1,MATCH(Details[[#Headers],[ANWALT FÜR GEISTIGES EIGENTUM]],Parameter[#Headers],0))*Details[[#This Row],[IST-ARBEIT]]","v":{"v":0,"d":"0 €"}},{"$f":"INDEX(Parameter[],MATCH(Details[[#This Row],[PROJEKTTYP]],Parameter[PROJEKTTYP],0),MATCH(Details[[#Headers],[INSOLVENZANWALT]],Parameter[#Headers],0))*INDEX(PROJEKTPARAMETER!$B$12:$H$12,1,MATCH(Details[[#Headers],[INSOLVENZANWALT]],Parameter[#Headers],0))*Details[[#This Row],[IST-ARBEIT]]","v":{"v":0,"d":"0 €"}},{"$f":"INDEX(Parameter[],MATCH(Details[[#This Row],[PROJEKTTYP]],Parameter[PROJEKTTYP],0),MATCH(Details[[#Headers],[VERWALTUNGSPERSONAL]],Parameter[#Headers],0))*INDEX(PROJEKTPARAMETER!$B$12:$H$12,1,MATCH(Details[[#Headers],[VERWALTUNGSPERSONAL]],Parameter[#Headers],0))*Details[[#This Row],[IST-ARBEIT]]","v":{"v":18750,"d":"18,750 €"}}]
[null,"Projekt 4","Patentanmeldung",{"$f":"TODAY()+200","v":"2019-09-08"},{"$f":"TODAY()+230","v":"2019-10-08"},{"$f":"TODAY()+230","v":"2019-10-08"},{"$f":"TODAY()+230","v":"2019-10-08"},150,145,{"$f":"DAYS360(Details[[#This Row],[VORAUSSICHTLICHER START]],Details[[#This Row],[VORAUSSICHTLICHES ENDE]],FALSE)","v":30},{"$f":"DAYS360(Details[[#This Row],[TATSÄCHLICHER START]],Details[[#This Row],[TATSÄCHLICHES ENDE]],FALSE)","v":0},{"$f":"INDEX(Parameter[],MATCH(Details[[#This Row],[PROJEKTTYP]],Parameter[PROJEKTTYP],0),MATCH(Details[[#Headers],[ALLGEMEINER PARTNER]],Parameter[#Headers],0))*INDEX(PROJEKTPARAMETER!$B$12:$H$12,1,MATCH(Details[[#Headers],[ALLGEMEINER PARTNER]],Parameter[#Headers],0))*Details[[#This Row],[GESCHÄTZTE ARBEIT]]","v":{"v":5250,"d":"5,250 €"}},{"$f":"INDEX(Parameter[],MATCH(Details[[#This Row],[PROJEKTTYP]],Parameter[PROJEKTTYP],0),MATCH(Details[[#Headers],[WIRTSCHAFTSANWALT]],Parameter[#Headers],0))*INDEX(PROJEKTPARAMETER!$B$12:$H$12,1,MATCH(Details[[#Headers],[WIRTSCHAFTSANWALT]],Parameter[#Headers],0))*Details[[#This Row],[GESCHÄTZTE ARBEIT]]","v":{"v":0,"d":"0 €"}},{"$f":"INDEX(Parameter[],MATCH(Details[[#This Row],[PROJEKTTYP]],Parameter[PROJEKTTYP],0),MATCH(Details[[#Headers],[VERTEIDIGER]],Parameter[#Headers],0))*INDEX(PROJEKTPARAMETER!$B$12:$H$12,1,MATCH(Details[[#Headers],[VERTEIDIGER]],Parameter[#Headers],0))*Details[[#This Row],[GESCHÄTZTE ARBEIT]]","v":{"v":0,"d":"0 €"}},{"$f":"INDEX(Parameter[],MATCH(Details[[#This Row],[PROJEKTTYP]],Parameter[PROJEKTTYP],0),MATCH(Details[[#Headers],[ANWALT FÜR GEISTIGES EIGENTUM]],Parameter[#Headers],0))*INDEX(PROJEKTPARAMETER!$B$12:$H$12,1,MATCH(Details[[#Headers],[ANWALT FÜR GEISTIGES EIGENTUM]],Parameter[#Headers],0))*Details[[#This Row],[GESCHÄTZTE ARBEIT]]","v":{"v":24750,"d":"24,750 €"}},{"$f":"INDEX(Parameter[],MATCH(Details[[#This Row],[PROJEKTTYP]],Parameter[PROJEKTTYP],0),MATCH(Details[[#Headers],[INSOLVENZANWALT]],Parameter[#Headers],0))*INDEX(PROJEKTPARAMETER!$B$12:$H$12,1,MATCH(Details[[#Headers],[INSOLVENZANWALT]],Parameter[#Headers],0))*Details[[#This Row],[GESCHÄTZTE ARBEIT]]","v":{"v":0,"d":"0 €"}},{"$f":"INDEX(Parameter[],MATCH(Details[[#This Row],[PROJEKTTYP]],Parameter[PROJEKTTYP],0),MATCH(Details[[#Headers],[VERWALTUNGSPERSONAL]],Parameter[#Headers],0))*INDEX(PROJEKTPARAMETER!$B$12:$H$12,1,MATCH(Details[[#Headers],[VERWALTUNGSPERSONAL]],Parameter[#Headers],0))*Details[[#This Row],[GESCHÄTZTE ARBEIT]]","v":{"v":5625,"d":"5,625 €"}},{"$f":"INDEX(Parameter[],MATCH(Details[[#This Row],[PROJEKTTYP]],Parameter[PROJEKTTYP],0),MATCH(Details[[#Headers],[ALLGEMEINER PARTNER]],Parameter[#Headers],0))*INDEX(PROJEKTPARAMETER!$B$12:$H$12,1,MATCH(Details[[#Headers],[ALLGEMEINER PARTNER]],Parameter[#Headers],0))*Details[[#This Row],[IST-ARBEIT]]","v":{"v":5075,"d":"5,075 €"}},{"$f":"INDEX(Parameter[],MATCH(Details[[#This Row],[PROJEKTTYP]],Parameter[PROJEKTTYP],0),MATCH(Details[[#Headers],[WIRTSCHAFTSANWALT]],Parameter[#Headers],0))*INDEX(PROJEKTPARAMETER!$B$12:$H$12,1,MATCH(Details[[#Headers],[WIRTSCHAFTSANWALT]],Parameter[#Headers],0))*Details[[#This Row],[IST-ARBEIT]]","v":{"v":0,"d":"0 €"}},{"$f":"INDEX(Parameter[],MATCH(Details[[#This Row],[PROJEKTTYP]],Parameter[PROJEKTTYP],0),MATCH(Details[[#Headers],[VERTEIDIGER]],Parameter[#Headers],0))*INDEX(PROJEKTPARAMETER!$B$12:$H$12,1,MATCH(Details[[#Headers],[VERTEIDIGER]],Parameter[#Headers],0))*Details[[#This Row],[IST-ARBEIT]]","v":{"v":0,"d":"0 €"}},{"$f":"INDEX(Parameter[],MATCH(Details[[#This Row],[PROJEKTTYP]],Parameter[PROJEKTTYP],0),MATCH(Details[[#Headers],[ANWALT FÜR GEISTIGES EIGENTUM]],Parameter[#Headers],0))*INDEX(PROJEKTPARAMETER!$B$12:$H$12,1,MATCH(Details[[#Headers],[ANWALT FÜR GEISTIGES EIGENTUM]],Parameter[#Headers],0))*Details[[#This Row],[IST-ARBEIT]]","v":{"v":23925,"d":"23,925 €"}},{"$f":"INDEX(Parameter[],MATCH(Details[[#This Row],[PROJEKTTYP]],Parameter[PROJEKTTYP],0),MATCH(Details[[#Headers],[INSOLVENZANWALT]],Parameter[#Headers],0))*INDEX(PROJEKTPARAMETER!$B$12:$H$12,1,MATCH(Details[[#Headers],[INSOLVENZANWALT]],Parameter[#Headers],0))*Details[[#This Row],[IST-ARBEIT]]","v":{"v":0,"d":"0 €"}},{"$f":"INDEX(Parameter[],MATCH(Details[[#This Row],[PROJEKTTYP]],Parameter[PROJEKTTYP],0),MATCH(Details[[#Headers],[VERWALTUNGSPERSONAL]],Parameter[#Headers],0))*INDEX(PROJEKTPARAMETER!$B$12:$H$12,1,MATCH(Details[[#Headers],[VERWALTUNGSPERSONAL]],Parameter[#Headers],0))*Details[[#This Row],[IST-ARBEIT]]","v":{"v":5437.5,"d":"5,438 €"}}]
[null,"Projekt 5","Mitarbeiterklage",{"$f":"TODAY()+220","v":"2019-09-28"},{"$f":"TODAY()+250","v":"2019-10-28"},{"$f":"TODAY()+230","v":"2019-10-08"},{"$f":"TODAY()+259","v":"2019-11-06"},250,255,{"$f":"DAYS360(Details[[#This Row],[VORAUSSICHTLICHER START]],Details[[#This Row],[VORAUSSICHTLICHES ENDE]],FALSE)","v":30},{"$f":"DAYS360(Details[[#This Row],[TATSÄCHLICHER START]],Details[[#This Row],[TATSÄCHLICHES ENDE]],FALSE)","v":28},{"$f":"INDEX(Parameter[],MATCH(Details[[#This Row],[PROJEKTTYP]],Parameter[PROJEKTTYP],0),MATCH(Details[[#Headers],[ALLGEMEINER PARTNER]],Parameter[#Headers],0))*INDEX(PROJEKTPARAMETER!$B$12:$H$12,1,MATCH(Details[[#Headers],[ALLGEMEINER PARTNER]],Parameter[#Headers],0))*Details[[#This Row],[GESCHÄTZTE ARBEIT]]","v":{"v":17500,"d":"17,500 €"}},{"$f":"INDEX(Parameter[],MATCH(Details[[#This Row],[PROJEKTTYP]],Parameter[PROJEKTTYP],0),MATCH(Details[[#Headers],[WIRTSCHAFTSANWALT]],Parameter[#Headers],0))*INDEX(PROJEKTPARAMETER!$B$12:$H$12,1,MATCH(Details[[#Headers],[WIRTSCHAFTSANWALT]],Parameter[#Headers],0))*Details[[#This Row],[GESCHÄTZTE ARBEIT]]","v":{"v":6250,"d":"6,250 €"}},{"$f":"INDEX(Parameter[],MATCH(Details[[#This Row],[PROJEKTTYP]],Parameter[PROJEKTTYP],0),MATCH(Details[[#Headers],[VERTEIDIGER]],Parameter[#Headers],0))*INDEX(PROJEKTPARAMETER!$B$12:$H$12,1,MATCH(Details[[#Headers],[VERTEIDIGER]],Parameter[#Headers],0))*Details[[#This Row],[GESCHÄTZTE ARBEIT]]","v":{"v":30000,"d":"30,000 €"}},{"$f":"INDEX(Parameter[],MATCH(Details[[#This Row],[PROJEKTTYP]],Parameter[PROJEKTTYP],0),MATCH(Details[[#Headers],[ANWALT FÜR GEISTIGES EIGENTUM]],Parameter[#Headers],0))*INDEX(PROJEKTPARAMETER!$B$12:$H$12,1,MATCH(Details[[#Headers],[ANWALT FÜR GEISTIGES EIGENTUM]],Parameter[#Headers],0))*Details[[#This Row],[GESCHÄTZTE ARBEIT]]","v":{"v":0,"d":"0 €"}},{"$f":"INDEX(Parameter[],MATCH(Details[[#This Row],[PROJEKTTYP]],Parameter[PROJEKTTYP],0),MATCH(Details[[#Headers],[INSOLVENZANWALT]],Parameter[#Headers],0))*INDEX(PROJEKTPARAMETER!$B$12:$H$12,1,MATCH(Details[[#Headers],[INSOLVENZANWALT]],Parameter[#Headers],0))*Details[[#This Row],[GESCHÄTZTE ARBEIT]]","v":{"v":0,"d":"0 €"}},{"$f":"INDEX(Parameter[],MATCH(Details[[#This Row],[PROJEKTTYP]],Parameter[PROJEKTTYP],0),MATCH(Details[[#Headers],[VERWALTUNGSPERSONAL]],Parameter[#Headers],0))*INDEX(PROJEKTPARAMETER!$B$12:$H$12,1,MATCH(Details[[#Headers],[VERWALTUNGSPERSONAL]],Parameter[#Headers],0))*Details[[#This Row],[GESCHÄTZTE ARBEIT]]","v":{"v":9375,"d":"9,375 €"}},{"$f":"INDEX(Parameter[],MATCH(Details[[#This Row],[PROJEKTTYP]],Parameter[PROJEKTTYP],0),MATCH(Details[[#Headers],[ALLGEMEINER PARTNER]],Parameter[#Headers],0))*INDEX(PROJEKTPARAMETER!$B$12:$H$12,1,MATCH(Details[[#Headers],[ALLGEMEINER PARTNER]],Parameter[#Headers],0))*Details[[#This Row],[IST-ARBEIT]]","v":{"v":17850,"d":"17,850 €"}},{"$f":"INDEX(Parameter[],MATCH(Details[[#This Row],[PROJEKTTYP]],Parameter[PROJEKTTYP],0),MATCH(Details[[#Headers],[WIRTSCHAFTSANWALT]],Parameter[#Headers],0))*INDEX(PROJEKTPARAMETER!$B$12:$H$12,1,MATCH(Details[[#Headers],[WIRTSCHAFTSANWALT]],Parameter[#Headers],0))*Details[[#This Row],[IST-ARBEIT]]","v":{"v":6375,"d":"6,375 €"}},{"$f":"INDEX(Parameter[],MATCH(Details[[#This Row],[PROJEKTTYP]],Parameter[PROJEKTTYP],0),MATCH(Details[[#Headers],[VERTEIDIGER]],Parameter[#Headers],0))*INDEX(PROJEKTPARAMETER!$B$12:$H$12,1,MATCH(Details[[#Headers],[VERTEIDIGER]],Parameter[#Headers],0))*Details[[#This Row],[IST-ARBEIT]]","v":{"v":30600,"d":"30,600 €"}},{"$f":"INDEX(Parameter[],MATCH(Details[[#This Row],[PROJEKTTYP]],Parameter[PROJEKTTYP],0),MATCH(Details[[#Headers],[ANWALT FÜR GEISTIGES EIGENTUM]],Parameter[#Headers],0))*INDEX(PROJEKTPARAMETER!$B$12:$H$12,1,MATCH(Details[[#Headers],[ANWALT FÜR GEISTIGES EIGENTUM]],Parameter[#Headers],0))*Details[[#This Row],[IST-ARBEIT]]","v":{"v":0,"d":"0 €"}},{"$f":"INDEX(Parameter[],MATCH(Details[[#This Row],[PROJEKTTYP]],Parameter[PROJEKTTYP],0),MATCH(Details[[#Headers],[INSOLVENZANWALT]],Parameter[#Headers],0))*INDEX(PROJEKTPARAMETER!$B$12:$H$12,1,MATCH(Details[[#Headers],[INSOLVENZANWALT]],Parameter[#Headers],0))*Details[[#This Row],[IST-ARBEIT]]","v":{"v":0,"d":"0 €"}},{"$f":"INDEX(Parameter[],MATCH(Details[[#This Row],[PROJEKTTYP]],Parameter[PROJEKTTYP],0),MATCH(Details[[#Headers],[VERWALTUNGSPERSONAL]],Parameter[#Headers],0))*INDEX(PROJEKTPARAMETER!$B$12:$H$12,1,MATCH(Details[[#Headers],[VERWALTUNGSPERSONAL]],Parameter[#Headers],0))*Details[[#This Row],[IST-ARBEIT]]","v":{"v":9562.5,"d":"9,563 €"}}]
[null,"ERGEBNIS",{"$nulls":5},{"$f":"SUBTOTAL(109,Details[GESCHÄTZTE ARBEIT])","v":1500},{"$f":"SUBTOTAL(109,Details[IST-ARBEIT])","v":1510},{"$f":"SUBTOTAL(109,Details[GESCHÄTZTE DAUER])","v":190},{"$f":"SUBTOTAL(109,Details[TATSÄCHLICHE DAUER])","v":170}]

{"sheet":"PROJEKTSUMMEN","index":3,"n_rows":11,"n_cols":16,"rows_kept":11,"merged":[[3,2,3,7],[3,8,3,13],[3,15,14,19]]}
["Erhalten Sie Projektsummen in diesem Arbeitsblatt. Der Firmenname wird automatisch in der Zelle rechts aktualisiert. Nützliche Anweisungen befinden sich in Zellen in dieser Spalte. Drücken Sie die NACH-UNTEN-TASTE, um anzufangen.",{"$f":"PROJEKTPARAMETER!B1","v":"Firmenname"}]
["Der Titel dieses Arbeitsblatts befindet sich in der Zelle rechts.",{"$f":"PROJEKTPARAMETER!B2","v":"Projektplanung für Anwaltskanzleien"}]
["Die Vertraulichkeitsnachricht befindet sich in der Zelle auf der rechten Seite.",{"$f":"PROJEKTPARAMETER!B3","v":"Vertraulicher Firmenname"}]
["Die geschätzt Beschriftung ist in Zelle C4, die tatsächlich Beschriftung ist in Zelle I4 und der Infotipp ist in Zelle P4.",null,"GESCHÄTZT",{"$nulls":5},"TATSÄCHLICH",{"$nulls":6},"INFO: \nDiese PivotTable wird nicht automatisch aktualisiert.   Wenn Sie sie aktualisieren möchten, wählen Sie sie aus (eine beliebige Zelle in der PivotTable) und wählen Sie im Menüband PIVOTTABLE-TOOLS | ANALYSIEREN die Option Aktualisieren aus.  Oder drücken Sie UMSCHALT + F10, indem Sie die PivotTable auswählen, und wählen Sie Aktualisieren."]
["Die in einer Zelle auf der rechten Seite beginnende PivotTable wird automatisch aktualisiert.","PROJEKTNAME","ALLGEMEINER PARTNER ","WIRTSCHAFT ","VERTEIDIGER ","GEISTIGES EIGENTUM ","INSOLVENZ ","VERWALTUNGSPERSONAL ","ALLGEMEINER PARTNER  ","WIRTSCHAFT","VERTEIDIGER  ","INSOLVENZ","GEISTIGES EIGENTUM","VERWALTUNGSPERSONAL  "]
[null,"Projekt 1",{"v":7000,"d":"7,000.00 €"},{"v":20000,"d":"20,000.00 €"},{"v":0,"d":"0.00 €"},{"v":0,"d":"0.00 €"},{"v":0,"d":"0.00 €"},{"v":12500,"d":"12,500.00 €"},{"v":7700,"d":"7,700.00 €"},{"v":22000,"d":"22,000.00 €"},{"v":0,"d":"0.00 €"},{"v":0,"d":"0.00 €"},{"v":0,"d":"0.00 €"},{"v":13750,"d":"13,750.00 €"}]
[null,"Projekt 2",{"v":14000,"d":"14,000.00 €"},{"v":40000,"d":"40,000.00 €"},{"v":0,"d":"0.00 €"},{"v":11000,"d":"11,000.00 €"},{"v":0,"d":"0.00 €"},{"v":20000,"d":"20,000.00 €"},{"v":13650,"d":"13,650.00 €"},{"v":39000,"d":"39,000.00 €"},{"v":0,"d":"0.00 €"},{"v":10725,"d":"10,725.00 €"},{"v":0,"d":"0.00 €"},{"v":19500,"d":"19,500.00 €"}]
[null,"Projekt 3",{"v":35000,"d":"35,000.00 €"},{"v":0,"d":"0.00 €"},{"v":75000,"d":"75,000.00 €"},{"v":0,"d":"0.00 €"},{"v":0,"d":"0.00 €"},{"v":18750,"d":"18,750.00 €"},{"v":35000,"d":"35,000.00 €"},{"v":0,"d":"0.00 €"},{"v":75000,"d":"75,000.00 €"},{"v":0,"d":"0.00 €"},{"v":0,"d":"0.00 €"},{"v":18750,"d":"18,750.00 €"}]
[null,"Projekt 4",{"v":5250,"d":"5,250.00 €"},{"v":0,"d":"0.00 €"},{"v":0,"d":"0.00 €"},{"v":24750,"d":"24,750.00 €"},{"v":0,"d":"0.00 €"},{"v":5625,"d":"5,625.00 €"},{"v":5075,"d":"5,075.00 €"},{"v":0,"d":"0.00 €"},{"v":0,"d":"0.00 €"},{"v":23925,"d":"23,925.00 €"},{"v":0,"d":"0.00 €"},{"v":5437.5,"d":"5,437.50 €"}]
[null,"Projekt 5",{"v":17500,"d":"17,500.00 €"},{"v":6250,"d":"6,250.00 €"},{"v":30000,"d":"30,000.00 €"},{"v":0,"d":"0.00 €"},{"v":0,"d":"0.00 €"},{"v":9375,"d":"9,375.00 €"},{"v":17850,"d":"17,850.00 €"},{"v":6375,"d":"6,375.00 €"},{"v":30600,"d":"30,600.00 €"},{"v":0,"d":"0.00 €"},{"v":0,"d":"0.00 €"},{"v":9562.5,"d":"9,562.50 €"}]
[null,"Gesamtergebnis",{"v":78750,"d":"78,750.00 €"},{"v":66250,"d":"66,250.00 €"},{"v":105000,"d":"105,000.00 €"},{"v":35750,"d":"35,750.00 €"},{"v":0,"d":"0.00 €"},{"v":66250,"d":"66,250.00 €"},{"v":79275,"d":"79,275.00 €"},{"v":67375,"d":"67,375.00 €"},{"v":105600,"d":"105,600.00 €"},{"v":34650,"d":"34,650.00 €"},{"v":0,"d":"0.00 €"},{"v":67000,"d":"67,000.00 €"}]